bitfinex-derivatives/quotes_BTCF0:USTF0_20250718
["timestamp","ask_amount","ask_price","bid_price","bid_amount"]
[1752823441592,2.04280904,119930.0,119920.0,0.42457641]
[1752823441793,2.15280904,119930.0,119920.0,0.00208]
[1752823442796,0.4596469,119920.0,119910.0,0.42514641]
[1752823442998,0.90696331,119920.0,119910.0,0.00265]
[1752823443293,1.39218309,119920.0,119910.0,0.00265]
[1752823443500,0.2905408,119910.0,119900.0,0.78829641]
[1752823443700,1.51697721,119910.0,119900.0,0.78829641]
[1752823443901,1.64139699,119910.0,119900.0,0.78829641]
[1752823444602,1.21890058,119910.0,119900.0,0.79129641]
[1752823444900,1.21890058,119910.0,119900.0,0.3708]
[1752823448108,1.21890058,119910.0,119900.0,0.4021]
[1752823449105,1.21890058,119910.0,119900.0,0.3708]
[1752823449706,1.21874058,119910.0,119900.0,0.3708]
[1752823450007,1.21870058,119910.0,119900.0,0.3708]
[1752823450209,1.21870058,119910.0,119900.0,0.48195]
[1752823450506,1.21870058,119910.0,119900.0,0.5289]
[1752823450707,1.21870058,119910.0,119900.0,0.48195]
[1752823452310,1.21870058,119910.0,119900.0,0.3708]
[1752823454819,1.21870058,119910.0,119900.0,0.7777573]
[1752823455118,1.21870058,119910.0,119900.0,0.8576073]
[1752823455418,1.21858058,119910.0,119900.0,0.54137]
[1752823455613,0.60890058,119910.0,119900.0,0.54137]
[1752823455816,1.21850058,119910.0,119900.0,1.0298173]
[1752823456617,1.21850058,119910.0,119900.0,0.9170273]
[1752823460222,1.21850058,119910.0,119900.0,0.54137]
[1752823460718,1.21850058,119910.0,119900.0,0.9170273]
[1752823461725,1.21850058,119910.0,119900.0,0.54137]
[1752823461925,1.21850058,119910.0,119900.0,0.9170273]
[1752823462225,1.21850058,119910.0,119900.0,0.54137]
[1752823463124,1.21850058,119910.0,119900.0,0.48195]
[1752823464924,1.6411052,119910.0,119900.0,0.90455462]
[1752823465128,1.21850058,119910.0,119900.0,0.96584462]
[1752823465426,1.21850058,119910.0,119900.0,1.07863462]
[1752823466026,1.21850058,119910.0,119900.0,0.96584462]
[1752823466227,1.6411052,119910.0,119900.0,0.54324]
[1752823466428,1.21850058,119910.0,119900.0,0.96584462]
[1752823466727,1.6411052,119910.0,119900.0,0.96584462]
[1752823467028,1.21850058,119910.0,119900.0,0.96584462]
[1752823468529,1.21850058,119910.0,119900.0,0.96792462]
[1752823468729,1.21850058,119910.0,119900.0,1.08071462]
[1752823470627,1.21850058,119910.0,119900.0,0.48403]
[1752823470828,1.21850058,119910.0,119900.0,0.40418]
[1752823471028,1.21850058,119910.0,119900.0,0.82678462]
[1752823471431,1.6411052,119910.0,119900.0,0.82678462]
[1752823471732,1.21850058,119910.0,119900.0,0.82678462]
[1752823471932,1.6411052,119910.0,119900.0,0.95245462]
[1752823472328,1.21850058,119910.0,119900.0,0.95245462]
[1752823472630,1.6411052,119910.0,119900.0,0.95245462]
[1752823472828,1.21850058,119910.0,119900.0,0.95245462]
[1752823473030,1.6411052,119910.0,119900.0,0.95245462]
[1752823473435,1.6411052,119910.0,119900.0,0.96450462]
[1752823473836,1.21850058,119910.0,119900.0,0.96450462]
[1752823474037,1.6411052,119910.0,119900.0,0.96450462]
[1752823475037,1.21850058,119910.0,119900.0,0.96450462]
[1752823475237,1.6411052,119910.0,119900.0,0.96450462]
[1752823475638,1.21850058,119910.0,119900.0,0.96450462]
[1752823475837,1.6411052,119910.0,119900.0,0.96450462]
[1752823477137,1.21850058,119910.0,119900.0,0.96450462]
[1752823477335,1.6411052,119910.0,119900.0,0.96450462]
[1752823477639,1.21850058,119910.0,119900.0,0.96450462]
[1752823477938,1.6411052,119910.0,119900.0,0.96450462]
[1752823478133,1.21850058,119910.0,119900.0,0.96450462]
[1752823478332,1.6411052,119910.0,119900.0,1.07729462]
[1752823479439,1.21850058,119910.0,119900.0,1.07729462]
[1752823479639,1.6411052,119910.0,119900.0,0.65469]
[1752823479939,1.6411052,119910.0,119900.0,1.07729462]
[1752823480441,1.6411052,119910.0,119900.0,0.65469]
[1752823480737,1.6411052,119910.0,119900.0,1.07521462]
[1752823481440,1.21850058,119910.0,119900.0,1.07521462]
[1752823481739,1.6411052,119910.0,119900.0,1.07521462]
[1752823482139,1.6411052,119910.0,119900.0,1.07729462]
[1752823482643,1.21850058,119910.0,119900.0,1.07729462]
[1752823483041,1.21850058,119910.0,119900.0,1.08625462]
[1752823483443,1.21850058,119910.0,119900.0,0.66365]
[1752823483743,1.21850058,119910.0,119900.0,1.08625462]
[1752823487043,1.21850058,119910.0,119900.0,0.66365]
[1752823487241,1.21850058,119910.0,119900.0,1.08625462]
[1752823487648,1.21850058,119910.0,119900.0,1.07729462]
[1752823488248,1.21850058,119910.0,119900.0,0.65469]
[1752823488547,1.21850058,119910.0,119900.0,1.07729462]
[1752823489450,1.21850058,119910.0,119900.0,0.65469]
[1752823490047,1.21850058,119910.0,119900.0,1.07729462]
[1752823490648,0.60890058,119910.0,119900.0,1.07729462]
[1752823495348,0.60890058,119910.0,119900.0,0.65469]
[1752823495551,0.60890058,119910.0,119900.0,1.07729462]
[1752823495750,0.60890058,119910.0,119900.0,0.65469]
[1752823495950,0.60890058,119910.0,119900.0,1.07729462]
[1752823497452,1.0315052,119910.0,119900.0,0.5419]
[1752823497752,1.0315052,119910.0,119900.0,1.51161462]
[1752823498052,1.0315052,119910.0,119900.0,1.13521]
[1752823498253,1.0315052,119910.0,119900.0,1.55781462]
[1752823498754,0.60890058,119910.0,119900.0,0.90321462]
[1752823498953,1.0315052,119910.0,119900.0,0.90321462]
[1752823499254,1.0315052,119910.0,119900.0,0.48061]
[1752823499456,0.60890058,119910.0,119900.0,0.90321462]
[1752823499850,1.0315052,119910.0,119900.0,0.48061]
[1752823500051,1.0315052,119910.0,119900.0,0.90321462]
[1752823500251,0.60890058,119910.0,119900.0,0.94941462]
[1752823500447,1.1515052,119910.0,119900.0,0.01208]
[1752823501654,0.72890058,119910.0,119900.0,0.01208]
[1752823502051,1.1515052,119910.0,119900.0,0.01208]
[1752823502445,0.72890058,119910.0,119900.0,0.43468462]
[1752823502647,0.72890058,119910.0,119900.0,0.79548462]
[1752823502854,1.1515052,119910.0,119900.0,0.37288]
[1752823503052,1.1515052,119910.0,119900.0,0.79548462]
[1752823503850,1.1515052,119910.0,119900.0,0.92311462]
[1752823504050,0.72890058,119910.0,119900.0,0.96931462]
[1752823504257,0.60890058,119910.0,119900.0,0.96931462]
[1752823504548,0.60890058,119910.0,119900.0,1.08210462]
[1752823504750,1.21718058,119910.0,119900.0,0.6595]
[1752823504952,1.21718058,119910.0,119900.0,1.08210462]
[1752823505852,1.21718058,119910.0,119900.0,0.6595]
[1752823506053,1.21718058,119910.0,119900.0,1.08210462]
[1752823506955,1.6397852,119910.0,119900.0,0.91160462]
[1752823507857,1.21718058,119910.0,119900.0,0.91160462]
[1752823508355,1.6397852,119910.0,119900.0,0.91160462]
[1752823508758,1.21718058,119910.0,119900.0,0.489]
[1752823508956,1.21718058,119910.0,119900.0,0.91160462]
[1752823509257,1.21718058,119910.0,119900.0,0.489]
[1752823509457,1.21718058,119910.0,119900.0,0.91160462]
[1752823509756,1.6397852,119910.0,119900.0,0.91160462]
[1752823511757,1.21718058,119910.0,119900.0,0.91160462]
[1752823511959,1.6397852,119910.0,119900.0,0.91160462]
[1752823512259,1.21718058,119910.0,119900.0,0.91160462]
[1752823512556,1.6397852,119910.0,119900.0,0.91160462]
[1752823512757,1.21718058,119910.0,119900.0,0.91160462]
[1752823512957,1.6397852,119910.0,119900.0,0.91160462]
[1752823513258,1.6397852,119910.0,119900.0,0.489]
[1752823513458,1.6397852,119910.0,119900.0,0.91160462]
[1752823514459,1.6397852,119910.0,119900.0,0.489]
[1752823514759,1.21718058,119910.0,119900.0,0.95780462]
[1752823515459,1.6397852,119910.0,119900.0,0.95780462]
[1752823515760,1.6397852,119910.0,119900.0,0.5352]
[1752823515960,1.6397852,119910.0,119900.0,0.95780462]
[1752823516160,1.21718058,119910.0,119900.0,0.95780462]
[1752823516561,1.21718058,119910.0,119900.0,0.96931462]
[1752823517863,1.21718058,119910.0,119900.0,1.08210462]
[1752823518062,1.21718058,119910.0,119900.0,1.09106462]
[1752823518660,0.60890058,119910.0,119900.0,1.51366924]
[1752823518866,1.0924808,119910.0,119900.0,1.51366924]
[1752823519067,1.0924808,119910.0,119900.0,1.09106462]
[1752823519269,1.0924808,119910.0,119900.0,0.6595]
[1752823519464,1.0924808,119910.0,119900.0,1.08210462]
[1752823520164,1.0924808,119910.0,119900.0,0.6595]
[1752823520365,1.0924808,119910.0,119900.0,1.08210462]
[1752823520767,1.0924808,119910.0,119900.0,0.6595]
[1752823520968,1.0924808,119910.0,119900.0,1.08210462]
[1752823521370,0.4844808,119910.0,119900.0,1.08210462]
[1752823521967,0.4844808,119910.0,119900.0,0.6595]
[1752823522161,0.4844808,119910.0,119900.0,1.08210462]
[1752823522366,0.4844808,119910.0,119900.0,0.6595]
[1752823522566,0.4844808,119910.0,119900.0,1.08210462]
[1752823522769,0.90708542,119910.0,119900.0,0.96931462]
[1752823523071,0.4844808,119910.0,119900.0,0.96931462]
[1752823523771,0.90708542,119910.0,119900.0,0.96931462]
[1752823524167,0.4844808,119910.0,119900.0,0.54671]
[1752823524373,0.90708542,119910.0,119900.0,0.489]
[1752823524573,0.90708542,119910.0,119900.0,0.91160462]
[1752823525172,0.4844808,119910.0,119900.0,0.96049462]
[1752823525373,0.90708542,119910.0,119900.0,0.96049462]
[1752823525577,0.90708542,119910.0,119900.0,0.97198462]
[1752823525777,0.4844808,119910.0,119900.0,1.08477462]
[1752823526074,0.4844808,119910.0,119900.0,0.66217]
[1752823526475,0.90708542,119910.0,119900.0,0.66217]
[1752823526671,0.90708542,119910.0,119900.0,1.08477462]
[1752823526976,0.4844808,119910.0,119900.0,1.08477462]
[1752823527274,0.90708542,119910.0,119900.0,0.66217]
[1752823527476,0.90708542,119910.0,119900.0,1.08477462]
[1752823527880,0.90708542,119910.0,119900.0,0.66217]
[1752823528176,0.90708542,119910.0,119900.0,1.08477462]
[1752823529174,0.4844808,119910.0,119900.0,1.08477462]
[1752823529477,0.90708542,119910.0,119900.0,1.08477462]
[1752823530573,0.4844808,119910.0,119900.0,1.08477462]
[1752823530971,0.90708542,119910.0,119900.0,0.66217]
[1752823531177,0.4844808,119910.0,119900.0,1.08477462]
[1752823531576,0.90708542,119910.0,119900.0,1.08477462]
[1752823531774,0.4844808,119910.0,119900.0,1.08477462]
[1752823532180,0.90708542,119910.0,119900.0,1.08477462]
[1752823533180,0.90708542,119910.0,119900.0,0.66217]
[1752823533675,1.0327663,119910.0,119900.0,0.54938]
[1752823533879,1.0327663,119910.0,119900.0,0.97198462]
[1752823534072,0.61016168,119910.0,119900.0,0.97198462]
[1752823534275,1.0327663,119910.0,119900.0,0.97198462]
[1752823535281,0.61016168,119910.0,119900.0,0.97198462]
[1752823535682,1.0327663,119910.0,119900.0,0.97198462]
[1752823536081,1.0327663,119910.0,119900.0,0.54938]
[1752823536576,1.56537092,119910.0,119900.0,0.01208]
[1752823537175,0.31789,119890.0,119880.0,0.3608]
[1752823537381,0.4610733,119880.0,119870.0,1.06443462]
[1752823537582,0.4845833,119880.0,119870.0,1.06443462]
[1752823537781,0.4845833,119880.0,119870.0,0.64183]
[1752823537982,0.4845833,119880.0,119870.0,1.06443462]
[1752823538883,0.4845833,119880.0,119870.0,1.67203462]
[1752823539277,0.4845833,119880.0,119870.0,1.06443462]
[1752823539782,0.4845833,119880.0,119870.0,1.49599924]
[1752823539983,0.4845833,119880.0,119870.0,1.07339462]
[1752823540280,0.4845833,119880.0,119870.0,1.06443462]
[1752823540780,0.02351,119860.0,119820.0,0.3608]
[1752823541085,0.4355908,119810.0,119800.0,0.28768]
[1752823541282,0.4355908,119810.0,119800.0,0.71028462]
[1752823541283,1.1251408,119810.0,119800.0,0.71028462]
[1752823541484,0.8883908,119810.0,119800.0,0.71924462]
[1752823541886,0.8883908,119810.0,119800.0,1.32684462]
[1752823542078,1.0469208,119810.0,119800.0,1.32684462]
[1752823542278,1.46952542,119810.0,119800.0,0.71028462]
[1752823542484,1.50557771,119810.0,119800.0,0.05389]
[1752823542787,1.0749308,119810.0,119800.0,0.69163]
[1752823543087,1.0749308,119810.0,119800.0,1.11423462]
[1752823543289,1.49753542,119810.0,119800.0,0.08391]
[1752823543586,1.49753542,119810.0,119800.0,0.69163]
[1752823543587,1.19977815,119810.0,119800.0,0.69163]
[1752823543786,1.63031706,119810.0,119800.0,0.69163]
[1752823544287,0.4636147,119800.0,119790.0,0.08099]
[1752823544489,0.4847226,119780.0,119770.0,0.23379]
[1752823544683,1.2063226,119780.0,119770.0,0.72743]
[1752823544887,1.62892722,119780.0,119770.0,0.72743]
[1752823545086,1.2063226,119780.0,119770.0,0.72743]
[1752823545985,1.2063226,119780.0,119770.0,0.11935]
[1752823546289,0.4356465,119770.0,119760.0,0.4027304]
[1752823546489,0.6861765,119770.0,119760.0,1.44630892]
[1752823546686,0.3608,119770.0,119760.0,1.82071744]
[1752823546890,0.3618,119780.0,119770.0,0.4584865]
[1752823547092,0.3618,119780.0,119770.0,1.44437502]
[1752823547291,0.5286326,119780.0,119770.0,1.44437502]
[1752823548182,0.3618,119780.0,119770.0,1.44437502]
[1752823548383,0.3608,119780.0,119770.0,1.44437502]
[1752823548985,0.3618,119780.0,119770.0,1.61135101]
[1752823550088,0.3618,119780.0,119770.0,1.23486249]
[1752823550288,0.3618,119780.0,119770.0,1.61148407]
[1752823550992,0.3618,119780.0,119770.0,1.69497394]
[1752823550993,0.35284,119780.0,119770.0,1.69497394]
[1752823551286,0.30284,119780.0,119770.0,1.69497394]
[1752823551594,0.19819,119800.0,119790.0,0.1668186]
[1752823551794,0.5768877,119810.0,119790.0,1.36405704]
[1752823551997,0.8091847,119810.0,119800.0,0.37648852]
[1752823552292,0.8211047,119810.0,119800.0,0.37648852]
[1752823552493,0.9338347,119810.0,119800.0,0.98792852]
[1752823553295,0.9378347,119810.0,119800.0,0.98792852]
[1752823553790,0.9438347,119810.0,119800.0,0.98792852]
[1752823555896,0.9021362,119810.0,119800.0,0.98792852]
[1752823556090,0.40652,119810.0,119800.0,0.98792852]
[1752823556290,0.01,119810.0,119800.0,1.89203304]
[1752823556789,0.55899,119830.0,119820.0,0.1667769]
[1752823557088,0.55899,119830.0,119820.0,1.15458542]
[1752823557393,0.701953,119830.0,119820.0,1.15458542]
[1752823557893,0.725753,119830.0,119820.0,1.15458542]
[1752823558596,0.737673,119830.0,119820.0,1.15558542]
[1752823560197,0.57091,119830.0,119820.0,1.15558542]
[1752823560797,0.55899,119830.0,119820.0,1.15562542]
[1752823561093,0.19819,119840.0,119830.0,0.166763]
[1752823561297,0.19819,119840.0,119830.0,0.90405152]
[1752823561497,0.29895257,119840.0,119830.0,0.90405152]
[1752823561691,0.17439,119840.0,119830.0,0.90405152]
[1752823562396,0.19819,119840.0,119830.0,0.90405152]
[1752823562596,0.8513891,119840.0,119830.0,1.15477152]
[1752823562992,0.8513891,119840.0,119830.0,0.778283]
[1752823563189,0.8523891,119840.0,119830.0,0.166763]
[1752823563393,0.8523891,119840.0,119830.0,0.779283]
[1752823563902,0.489603,119830.0,119820.0,0.2522298]
[1752823564099,0.850403,119830.0,119820.0,0.8229779]
[1752823564292,0.850403,119830.0,119820.0,0.8208579]
[1752823564488,1.35223229,119830.0,119820.0,0.6124]
[1752823564694,0.4896308,119810.0,119800.0,0.2919046]
[1752823564893,0.8504308,119810.0,119800.0,0.9043046]
[1752823566397,0.8504308,119810.0,119800.0,0.9063046]
[1752823566796,0.8504308,119810.0,119800.0,0.9073046]
[1752823568600,0.8504308,119810.0,119800.0,0.2949046]
[1752823568899,1.2112308,119810.0,119800.0,0.7831647]
[1752823569495,1.71327369,119810.0,119800.0,0.003]
[1752823569799,1.33678517,119810.0,119800.0,0.1698047]
[1752823569999,1.33678517,119810.0,119800.0,0.003]
[1752823570195,1.71327369,119810.0,119800.0,0.003]
[1752823570594,1.33678517,119810.0,119800.0,0.003]
[1752823570792,1.33678517,119810.0,119800.0,0.1698047]
[1752823572003,1.71327369,119810.0,119800.0,0.1698047]
[1752823572501,1.71327369,119810.0,119800.0,0.003]
[1752823573597,1.33678517,119810.0,119800.0,0.003]
[1752823574003,1.71327369,119810.0,119800.0,0.003]
[1752823574199,1.71327369,119810.0,119800.0,0.001]
[1752823574402,0.4896726,119780.0,119770.0,0.26338296]
[1752823574609,1.2112726,119780.0,119770.0,0.26338296]
[1752823574899,1.04444,119780.0,119770.0,0.64195148]
[1752823575295,1.2112726,119780.0,119770.0,0.64195148]
[1752823575501,1.2112726,119780.0,119770.0,0.26746296]
[1752823575704,1.71231947,119780.0,119770.0,0.05411306]
[1752823575897,2.32935947,119780.0,119770.0,0.05411306]
[1752823576205,1.95287095,119780.0,119770.0,0.05411306]
[1752823576407,2.32935947,119780.0,119770.0,0.05411306]
[1752823576904,2.33715051,119780.0,119770.0,0.05411306]
[1752823577902,2.33715051,119780.0,119770.0,0.05211306]
[1752823578201,0.2796044,119750.0,119740.0,1.20289192]
[1752823578405,0.2796044,119750.0,119740.0,0.8514034]
[1752823578406,0.8494644,119750.0,119740.0,0.8514034]
[1752823578606,0.8494644,119750.0,119740.0,1.23919192]
[1752823579009,0.8494644,119750.0,119740.0,0.8627034]
[1752823579208,0.8494644,119750.0,119740.0,0.2755434]
[1752823579503,0.8494644,119750.0,119740.0,0.72167214]
[1752823579701,0.8494644,119750.0,119740.0,0.2356034]
[1752823580007,0.8494644,119750.0,119740.0,0.002]
[1752823580707,0.97410407,119750.0,119740.0,0.002]
[1752823581410,1.41543281,119750.0,119740.0,0.002]
[1752823581810,0.97410407,119750.0,119740.0,0.002]
[1752823582412,0.97410407,119750.0,119740.0,1e-07]
[1752823582710,1.41543281,119750.0,119740.0,1e-07]
[1752823582910,0.4570283,119740.0,119730.0,0.00208]
[1752823583105,1.4597683,119740.0,119730.0,0.00208]
[1752823583312,0.2858562,119720.0,119710.0,0.1782228]
[1752823583504,0.8408762,119720.0,119710.0,0.1782228]
[1752823583909,0.8408762,119720.0,119710.0,0.2088628]
[1752823584105,0.8408762,119720.0,119710.0,0.2136628]
[1752823584814,0.8408762,119720.0,119710.0,0.65499154]
[1752823585209,0.8408762,119720.0,119710.0,0.2136628]
[1752823585512,0.8408762,119720.0,119710.0,0.65499154]
[1752823585812,0.8408762,119720.0,119710.0,0.66299154]
[1752823587011,0.8408762,119720.0,119710.0,0.68746154]
[1752823587613,0.8408762,119720.0,119710.0,0.71457154]
[1752823589114,0.8408762,119720.0,119710.0,0.2732428]
[1752823589316,0.8408762,119720.0,119710.0,0.71457154]
[1752823589814,0.8408762,119720.0,119710.0,0.68746154]
[1752823590109,0.40752,119730.0,119720.0,0.2593962]
[1752823590314,0.04672,119740.0,119730.0,0.4545223]
[1752823590517,0.5743944,119750.0,119740.0,0.4545083]
[1752823590814,0.5974144,119750.0,119740.0,0.89583704]
[1752823591113,0.6395644,119750.0,119740.0,0.89583704]
[1752823591309,0.7163544,119750.0,119740.0,0.89583704]
[1752823591808,0.40752,119750.0,119740.0,0.89583704]
[1752823592015,0.40752,119750.0,119740.0,0.89783704]
[1752823592218,0.40752,119750.0,119740.0,0.4565083]
[1752823592513,0.6988744,119750.0,119740.0,0.89783704]
[1752823592708,0.7338644,119750.0,119740.0,0.89783704]
[1752823593510,0.7338644,119750.0,119740.0,1.0777083]
[1752823593715,0.8408344,119750.0,119740.0,1.52003704]
[1752823594215,0.67396,119750.0,119740.0,1.52003704]
[1752823594416,0.54397,119750.0,119740.0,1.52003704]
[1752823595317,0.7108444,119750.0,119740.0,1.52003704]
[1752823596615,0.7338644,119750.0,119740.0,1.52003704]
[1752823596809,0.6988744,119750.0,119740.0,1.52003704]
[1752823597417,0.40752,119750.0,119740.0,1.52003704]
[1752823597808,0.3608,119750.0,119740.0,1.52003704]
[1752823598011,0.338072,119760.0,119750.0,0.2899944]
[1752823598210,0.04672,119760.0,119750.0,0.89582314]
[1752823598410,0.5923824,119770.0,119750.0,0.89582314]
[1752823598411,0.40752,119770.0,119760.0,0.4544804]
[1752823598613,0.5743665,119770.0,119760.0,1.51724914]
[1752823598816,0.6988465,119770.0,119760.0,0.89580914]
[1752823599016,0.7640165,119770.0,119760.0,1.51736914]
[1752823599217,0.7640165,119770.0,119760.0,1.0760404]
[1752823599415,0.7640165,119770.0,119760.0,1.51736914]
[1752823601018,0.7650165,119770.0,119760.0,1.51736914]
[1752823601213,0.59817,119770.0,119760.0,1.51736914]
[1752823601716,0.59817,119770.0,119760.0,0.89580914]
[1752823601917,0.59817,119770.0,119760.0,1.51768914]
[1752823602317,0.59917,119770.0,119760.0,1.51768914]
[1752823602614,0.7660164,119770.0,119760.0,1.51768914]
[1752823602819,0.59917,119770.0,119760.0,1.51768914]
[1752823603120,0.7660164,119770.0,119760.0,1.51768914]
[1752823604818,0.8428064,119770.0,119760.0,0.84630914]
[1752823605019,0.8428064,119770.0,119760.0,1.46774914]
[1752823605723,0.8428064,119770.0,119760.0,1.51932914]
[1752823606118,0.67596,119770.0,119760.0,1.51932914]
[1752823606318,0.534,119770.0,119760.0,1.51932914]
[1752823606623,0.7008472,119770.0,119760.0,1.51932914]
[1752823606823,0.7008472,119770.0,119760.0,1.0780004]
[1752823607018,0.7238672,119770.0,119760.0,1.51932914]
[1752823607525,0.8428072,119770.0,119760.0,1.49221914]
[1752823607720,0.8428072,119770.0,119760.0,0.9128604]
[1752823608026,0.8428072,119770.0,119760.0,1.35418914]
[1752823608421,0.8428072,119770.0,119760.0,0.73338914]
[1752823608621,0.8428072,119770.0,119760.0,1.35414914]
[1752823609023,0.8428072,119770.0,119760.0,0.73338914]
[1752823609218,0.8428072,119770.0,119760.0,0.9126204]
[1752823609423,0.8428072,119770.0,119760.0,0.1802404]
[1752823609632,0.8428072,119770.0,119760.0,0.7893804]
[1752823611130,0.8428072,119770.0,119760.0,1.35338914]
[1752823611329,0.8428072,119770.0,119760.0,1.47557914]
[1752823611530,0.67596,119770.0,119760.0,1.52737914]
[1752823612031,0.534,119770.0,119760.0,1.52737914]
[1752823612431,0.68313,119770.0,119760.0,1.52737914]
[1752823612632,0.68313,119770.0,119760.0,0.90693914]
[1752823612832,0.68313,119770.0,119760.0,1.52709914]
[1752823613432,0.4891772,119770.0,119760.0,1.52709914]
[1752823613731,0.32233,119770.0,119760.0,1.52709914]
[1752823614232,0.24038,119770.0,119760.0,1.52709914]
[1752823614532,0.04501,119780.0,119770.0,0.4388272]
[1752823614734,0.8769783,119790.0,119780.0,0.2895133]
[1752823614931,0.4744735,119790.0,119780.0,1.52459204]
[1752823615833,0.04501,119790.0,119780.0,1.52459204]
[1752823616029,0.7099354,119800.0,119790.0,0.4387993]
[1752823616228,0.7099354,119800.0,119790.0,0.90481804]
[1752823616426,0.54313,119800.0,119790.0,0.90481804]
[1752823616832,0.18233,119800.0,119790.0,0.90481804]
[1752823617733,0.3491354,119800.0,119790.0,0.90689804]
[1752823617934,0.3935054,119800.0,119790.0,0.90689804]
[1752823618127,0.4754554,119800.0,119790.0,1.52781804]
[1752823618332,0.4754554,119800.0,119790.0,0.9120993]
[1752823618333,0.8362554,119800.0,119790.0,0.9120993]
[1752823619336,0.8362554,119800.0,119790.0,0.7892193]
[1752823619636,0.8362554,119800.0,119790.0,0.8010293]
[1752823619933,0.8362554,119800.0,119790.0,1.24135804]
[1752823620135,0.8362554,119800.0,119790.0,0.8000293]
[1752823620336,0.8362554,119800.0,119790.0,0.4137693]
[1752823620540,0.8362554,119800.0,119790.0,1.0579393]
[1752823620840,0.8362554,119800.0,119790.0,0.9110593]
[1752823621034,0.9610442,119800.0,119790.0,0.9110593]
[1752823622131,0.9610442,119800.0,119790.0,1.35238804]
[1752823623036,0.9610442,119800.0,119790.0,0.73290804]
[1752823623232,0.7942388,119800.0,119790.0,1.49914804]
[1752823623436,0.9610442,119800.0,119790.0,1.52625804]
[1752823623941,0.7942388,119800.0,119790.0,1.52625804]
[1752823624134,0.04601,119800.0,119790.0,1.52625804]
[1752823624439,0.001,119800.0,119790.0,1.88705804]
[1752823624834,0.04601,119800.0,119790.0,0.8263693]
[1752823625137,0.8362554,119800.0,119790.0,1.0858093]
[1752823625339,0.8362554,119800.0,119790.0,1.0340093]
[1752823626239,0.8362554,119800.0,119790.0,0.1807093]
[1752823626535,0.96136601,119800.0,119790.0,0.62276]
[1752823627338,0.96136601,119800.0,119790.0,0.00208]
[1752823627739,0.96136601,119800.0,119790.0,0.1688993]
[1752823628538,0.96136601,119800.0,119790.0,0.1807093]
[1752823629235,0.96136601,119800.0,119790.0,0.1688993]
[1752823629540,0.96136601,119800.0,119790.0,0.2915793]
[1752823630539,0.96136601,119800.0,119790.0,0.73290804]
[1752823630739,0.96136601,119800.0,119790.0,0.2915793]
[1752823632536,0.96136601,119800.0,119790.0,0.2605493]
[1752823632937,0.96136601,119800.0,119790.0,0.1807093]
[1752823633644,0.96136601,119800.0,119790.0,0.87978804]
[1752823633936,0.96136601,119800.0,119790.0,0.4137693]
[1752823634342,0.96136601,119800.0,119790.0,0.2915793]
[1752823636244,0.96136601,119800.0,119790.0,0.85509804]
[1752823636845,0.96136601,119800.0,119790.0,0.4137693]
[1752823637045,0.96136601,119800.0,119790.0,0.85509804]
[1752823637245,0.96136601,119800.0,119790.0,0.4137693]
[1752823637546,0.96136601,119800.0,119790.0,0.2915793]
[1752823637943,0.96136601,119800.0,119790.0,0.73290804]
[1752823638144,0.8362554,119800.0,119790.0,0.85509804]
[1752823638343,0.8362554,119800.0,119790.0,0.4137693]
[1752823638546,0.8362554,119800.0,119790.0,0.85509804]
[1752823641047,0.8362554,119800.0,119790.0,0.4137693]
[1752823641349,0.8362554,119800.0,119790.0,0.85509804]
[1752823642046,0.8362554,119800.0,119790.0,0.90678804]
[1752823642248,0.52032,119800.0,119790.0,0.90678804]
[1752823642749,0.40681,119800.0,119790.0,0.4654593]
[1752823642949,0.16013,119800.0,119790.0,0.90678804]
[1752823643749,0.18443,119800.0,119790.0,0.90678804]
[1752823644148,0.04601,119800.0,119790.0,0.90678804]
[1752823644549,0.22857,119800.0,119790.0,0.90678804]
[1752823644753,0.4761554,119800.0,119790.0,0.90678804]
[1752823645150,0.4761554,119800.0,119790.0,1.35106804]
[1752823645346,0.4761554,119800.0,119790.0,0.73290804]
[1752823645650,0.4761554,119800.0,119790.0,1.35106804]
[1752823645851,0.4761554,119800.0,119790.0,1.46962804]
[1752823646053,0.8369554,119800.0,119790.0,0.8297393]
[1752823646755,0.8369554,119800.0,119790.0,0.62203804]
[1752823646950,0.8369554,119800.0,119790.0,1.23995804]
[1752823647150,0.8369554,119800.0,119790.0,0.7986293]
[1752823648454,0.8369554,119800.0,119790.0,1.23995804]
[1752823648655,0.8369554,119800.0,119790.0,0.7986293]
[1752823649658,0.8369554,119800.0,119790.0,0.1688993]
[1752823650757,0.8369554,119800.0,119790.0,0.7860194]
[1752823651359,0.8369554,119800.0,119790.0,0.7973794]
[1752823651654,0.8369554,119800.0,119790.0,0.8798694]
[1752823651858,0.8369554,119800.0,119790.0,0.7860194]
[1752823652757,1.4540754,119800.0,119790.0,0.1688994]
[1752823654060,0.8369554,119800.0,119790.0,0.1688994]
[1752823654256,0.8369554,119800.0,119790.0,0.61022814]
[1752823654452,0.67015,119800.0,119790.0,0.90750814]
[1752823655058,0.30935,119800.0,119790.0,0.84233786]
[1752823655258,0.001,119800.0,119790.0,1.21849632]
[1752823655562,0.04741,119800.0,119790.0,0.84233786]
[1752823655764,0.18583,119800.0,119790.0,0.84233786]
[1752823655960,0.19714,119800.0,119790.0,0.84233786]
[1752823656262,0.31075,119800.0,119790.0,0.84233786]
[1752823656862,0.4775554,119800.0,119790.0,0.4661794]
[1752823657062,0.4775554,119800.0,119790.0,0.90701553]
[1752823658463,0.31075,119800.0,119790.0,0.90701553]
[1752823659464,0.4775554,119800.0,119790.0,0.90701553]
[1752823660869,0.31075,119800.0,119790.0,0.90701553]
[1752823662172,0.31075,119800.0,119790.0,1.26781553]
[1752823663174,0.18583,119800.0,119790.0,1.26781553]
[1752823663474,0.16153,119800.0,119790.0,1.26781553]
[1752823664374,0.04741,119800.0,119790.0,1.26781553]
[1752823664575,0.4775554,119800.0,119790.0,1.88401553]
[1752823664774,0.31075,119800.0,119790.0,1.88401553]
[1752823665772,0.31075,119800.0,119790.0,1.4431794]
[1752823665973,0.31075,119800.0,119790.0,1.88401553]
[1752823666273,0.22997,119800.0,119790.0,1.88401553]
[1752823667977,0.16153,119800.0,119790.0,1.88401553]
[1752823668774,0.16153,119800.0,119790.0,1.4431794]
[1752823668974,0.18509,119800.0,119790.0,1.88401553]
[1752823669273,0.18509,119800.0,119790.0,1.4431794]
[1752823669677,0.18509,119800.0,119790.0,1.88401553]
[1752823670376,0.22962,119800.0,119790.0,1.88401553]
[1752823670577,0.30491,119800.0,119790.0,1.88401553]
[1752823670875,0.4717154,119800.0,119790.0,1.88401553]
[1752823671277,0.30491,119800.0,119790.0,1.88401553]
[1752823676182,0.21808,119800.0,119790.0,1.88401553]
[1752823676783,0.18509,119800.0,119790.0,1.88401553]
[1752823676980,0.18509,119800.0,119790.0,1.81936477]
[1752823678783,0.16153,119800.0,119790.0,1.81936477]
[1752823680687,0.04741,119800.0,119790.0,1.81936477]